[Event "Panevezys Elite Open 2019"]
[Site "Panevezys"]
[Date "2019.06.25"]
[Round "1.1"]
[White "Badelka, Olga"]
[Black "Sulskis, Sarunas"]
[Result "1/2-1/2"]
[ECO "D32"]
[WhiteElo "2391"]
[BlackElo "2528"]
[Annotator "RC"]
[PlyCount "100"]
[EventDate "2019.06.24"]
[EventType "swiss"]
[EventCountry "LTU"]
[SourceTitle "playchess.com"]
[Source "ChessBase"]
[SourceQuality "1"]
[TimeControl "40/5400+30:1800+30"]

1. d4 {[%emt 0:00:00]} d5 {[%emt 0:00:16]} 2. c4 {[%emt 0:00:00]} e6 {[%emt 0:00:55]} 3. Nc3 {[%emt 0:00:00]} c5 {[%emt 0:03:45]} 4. cxd5 {[%emt 0:00:30]} cxd4 {[%emt 0:00:25]} 5. Qxd4 {[%emt 0:00:12]} Nc6 {[%emt 0:00:30]} 6. Qd1 {[%emt 0:00:37]} exd5 {[%emt 0:01:02]} 7. e3 {[%emt 0:06:07]} Nf6 {[%emt 0:00:26]} 8. Nf3 {[%emt 0:00:08]} Bc5 {[%emt 0:02:18]} 9. Be2 {[%emt 0:00:59]} O-O {[%emt 0:04:22]} 10. O-O {[%emt 0:00:08]} a6 {[%emt 0:07:13]} 11. b3 {[%emt 0:13:12]} d4 {[%emt 0:03:56]} 12. Na4 {[%emt 0:00:07]} Ba7 {[%emt 0:02:28]} 13. Nxd4 {[%emt 0:00:28]} Nxd4 {[%emt 0:06:02]} 14. exd4 {[%emt 0:00:05]} Bxd4 {[%emt 0:00:12]} 15. Bb2 {[%emt 0:00:07]} Bxb2 {[%emt 0:02:21]} 16. Nxb2 {[%emt 0:00:04]} Bf5 {[%emt 0:00:33]} 17. Bf3 {[%emt 0:04:28]} Be4 {[%emt 0:04:01]} 18. Bxe4 {[%emt 0:02:47]} Nxe4 {[%emt 0:00:07]} 19. Re1 {[%emt 0:00:34]} f5 {[%emt 0:04:57]} 20. Nc4 {[%emt 0:05:33]} b5 {[%emt 0:20:23]} 21. Ne3 {[%emt 0:01:48]} Qxd1 {[%emt 0:08:20]} 22. Raxd1 {[%emt 0:03:15]} Nc3 {[%emt 0:00:24]} 23. Rd3 {[%emt 0:04:10]} Nxa2 {[%emt 0:02:13]} 24. Nd5 {[%emt 0:00:42]} Rfe8 {[%emt 0:01:36]} 25. Ra1 {[%emt 0:24:52]} Rac8 {[%emt 0:01:37]} 26. Rdd1 {[%emt 0:08:16]} Nc3 {[%emt 0:06:35]} 27. Nxc3 {[%emt 0:00:05]} Rxc3 {[%emt 0:00:05]} 28. Rxa6 {[%emt 0:01:49]} Rxb3 {[%emt 0:00:09]} 29. g3 {[%emt 0:04:21]} f4 {[%emt 0:06:26]} 30. gxf4 {[%emt 0:00:18]} Rb4 {[%emt 0:00:28]} 31. Rb6 {[%emt 0:03:56]} Rf8 {[%emt 0:04:19]} 32. Rd5 {[%emt 0:00:28]} Rbxf4 {[%emt 0:00:47]} 33. Rdxb5 {[%emt 0:00:06]} Rxf2 {[%emt 0:01:01]} 34. Rb8 {[%emt 0:00:04]} g6 {[%emt 0:00:50]} 35. Rxf8+ {[%emt 0:00:27]} Rxf8 {[%emt 0:00:22]} 36. Rb7 {[%emt 0:00:02]} Rf7 {[%emt 0:00:07]} 37. Rb8+ {[%emt 0:00:03]} Kg7 {[%emt 0:00:04]} 38. Kg2 {[%emt 0:00:03]} Ra7 {[%emt 0:00:05]} 39. Kg3 {[%emt 0:00:18]} Ra3+ {[%emt 0:00:07]} 40. Kg2 {[%emt 0:00:23]} Ra2+ {[%emt 0:01:05]} 41. Kg3 {[%emt 0:30:03]} Ra3+ {[%emt 0:30:04]} 42. Kg2 {[%emt 0:00:03]} g5 {[%emt 0:04:26]} 43. Rb6 {[%emt 0:00:09]} g4 {[%emt 0:00:30]} 44. Rc6 {[%emt 0:00:35]} h5 {[%emt 0:02:31]} 45. Rb6 {[%emt 0:01:18]} Kf7 {[%emt 0:00:00]} 46. Rh6 {[%emt 0:00:00]} Ra5 {[%emt 0:00:00]} 47. Kg3 {[%emt 0:00:00]} Kg7 {[%emt 0:00:00]} 48. Rb6 {[%emt 0:00:00]} Ra3+ {[%emt 0:00:00]} 49. Kg2 {[%emt 0:00:00]} Rf3 {[%emt 0:00:00]} 50. Ra6 {[%emt 0:00:00]} Rc3 {[%emt 0:00:00]} 1/2-1/2

[Event "Panevezys Elite Open 2019"]
[Site "Panevezys"]
[Date "2019.06.25"]
[Round "2.10"]
[White "Cholleti Sahajasri"]
[Black "Harshita Guddanti"]
[Result "1/2-1/2"]
[ECO "E04"]
[WhiteElo "2207"]
[BlackElo "2072"]
[Annotator "RC"]
[PlyCount "51"]
[EventDate "2019.06.24"]
[EventType "swiss"]
[EventCountry "LTU"]
[SourceTitle "playchess.com"]
[Source "ChessBase"]
[SourceQuality "1"]
[TimeControl "40/5400+30:1800+30"]

1. d4 {[%emt 0:01:55]} Nf6 {[%emt 0:00:00]} 2. c4 {[%emt 0:00:36]} e6 {[%emt 0:03:50]} 3. g3 {[%emt 0:00:07]} d5 {[%emt 0:00:05]} 4. Nf3 {[%emt 0:00:11]} dxc4 {[%emt 0:00:09]} 5. Bg2 {[%emt 0:00:10]} Bb4+ {[%emt 0:00:25]} 6. Bd2 {[%emt 0:01:12]} a5 {[%emt 0:01:43]} 7. Qc2 {[%emt 0:02:21]} Nc6 {[%emt 0:01:02]} 8. Qxc4 {[%emt 0:04:30]} Qd5 {[%emt 0:00:42]} 9. Qxd5 {[%emt 0:02:38]} exd5 {[%emt 0:00:07]} 10. Nc3 {[%emt 0:00:43]} Bxc3 {[%emt 0:13:06]} 11. Bxc3 {[%emt 0:03:07]} Ne4 {[%emt 0:00:06]} 12. Nd2 {[%emt 0:03:38]} Nxd2 {[%emt 0:02:39]} 13. Kxd2 {[%emt 0:00:38]} Be6 {[%emt 0:04:16]} 14. b3 {[%emt 0:05:43]} a4 {[%emt 0:01:37]} 15. Rhb1 {[%emt 0:06:50]} O-O {[%emt 0:07:17]} 16. e3 {[%emt 0:04:53]} Na5 {[%emt 0:14:04]} 17. Bxa5 {[%emt 0:03:26]} Rxa5 {[%emt 0:03:29]} 18. b4 {[%emt 0:13:28]} Ra6 {[%emt 0:04:06]} 19. a3 {[%emt 0:00:22]} b5 {[%emt 0:02:14]} 20. Rc1 {[%emt 0:00:39]} c6 {[%emt 0:01:00]} 21. Rc5 {[%emt 0:03:06]} f5 {[%emt 0:02:37]} 22. f3 {[%emt 0:02:53]} Bd7 {[%emt 0:03:10]} 23. Re1 {[%emt 0:00:24]} Raa8 {[%emt 0:01:47]} 24. Bh3 {[%emt 0:08:19]} Rad8 {[%emt 0:01:40]} 25. Rg1 {[%emt 0:03:00]} Rf6 {[%emt 0:01:40]} 26. Bf1 1/2-1/2

[Event "Panevezys Elite Open 2019"]
[Site "Panevezys"]
[Date "2019.06.25"]
[Round "3.12"]
[White "Harshita Guddanti"]
[Black "Kalinowska, Zuzanna"]
[Result "1/2-1/2"]
[ECO "C18"]
[WhiteElo "2072"]
[BlackElo "2093"]
[Annotator "NA RC"]
[PlyCount "47"]
[EventDate "2019.06.24"]
[EventType "swiss"]
[EventCountry "LTU"]
[SourceTitle "playchess.com"]
[Source "ChessBase"]
[SourceQuality "1"]
[TimeControl "40/5400+30:1800+30"]

1. e4 {[%emt 0:00:00]} e6 {[%emt 0:00:00]} 2. d4 {[%emt 0:00:14]} d5 {[%emt 0:00:00]} 3. Nc3 {[%emt 0:00:06]} Bb4 {[%emt 0:00:00]} 4. e5 {[%emt 0:00:18]} c5 {[%emt 0:00:00]} 5. a3 {[%emt 0:00:05]} Bxc3+ {[%emt 0:00:04]} 6. bxc3 {[%emt 0:00:05]} Ne7 {[%emt 0:00:10]} 7. Qg4 {[%emt 0:01:08]} O-O {[%emt 0:00:26]} 8. Bd3 {[%emt 0:00:33]} f5 {[%emt 0:00:17]} 9. exf6 {[%emt 0:00:05]} Rxf6 {[%emt 0:00:07]} 10. Bg5 {[%emt 0:00:07]} Nd7 {[%emt 0:00:07]} 11. Qh4 {[%emt 0:14:15]} h6 {[%emt 0:01:17]} 12. Bxf6 {[%emt 0:01:01]} Nxf6 {[%emt 0:00:09]} 13. dxc5 {[%emt 0:05:08]} e5 {[%emt 0:02:12]} 14. f3 {[%emt 0:04:21]} e4 {[%emt 0:04:42]} 15. fxe4 {[%emt 0:01:40]} dxe4 {[%emt 0:00:09]} 16. Bc4+ {[%emt 0:02:24]} Kh7 {[%emt 0:02:09]} 17. Nh3 {[%emt 0:06:13]} Qa5 {[%emt 0:03:36]} 18. Ng5+ {[%emt 0:03:41]} Kh8 {[%emt 0:00:35]} 19. Nf7+ {[%emt 0:00:50]} Kh7 {[%emt 0:00:23]} 20. Ng5+ {[%emt 0:00:59]} Kh8 {[%emt 0:00:08]} 21. Nf7+ {[%emt 0:00:20]} Kh7 {[%emt 0:00:09]} 22. Ng5+ {[%emt 0:00:10]} Kh8 {[%emt 0:00:08]} 23. Nf7+ {[%emt 0:00:04]} Kh7 {[%emt 0:00:51]} 24. Ng5+ {[%emt 0:00:06]} 1/2-1/2

[Event "Panevezys Elite Open 2019"]
[Site "Panevezys"]
[Date "2019.06.25"]
[Round "3.13"]
[White "Zaura, Vidmantas"]
[Black "Stasans, Aivars"]
[Result "0-1"]
[ECO "A05"]
[WhiteElo "2223"]
[BlackElo "2039"]
[Annotator "RC"]
[PlyCount "116"]
[EventDate "2019.06.24"]
[EventType "swiss"]
[EventCountry "LTU"]
[SourceTitle "playchess.com"]
[Source "ChessBase"]
[SourceQuality "1"]
[TimeControl "40/5400+30:1800+30"]

1. Nf3 {[%emt 0:00:00]} Nf6 {[%emt 0:00:00]} 2. g3 {[%emt 0:00:00]} b6 {[%emt 0:00:09]} 3. Bg2 {[%emt 0:00:00]} Bb7 {[%emt 0:00:09]} 4. O-O {[%emt 0:00:13]} g6 {[%emt 0:00:48]} 5. d4 {[%emt 0:00:23]} Bg7 {[%emt 0:00:10]} 6. c4 {[%emt 0:00:05]} O-O {[%emt 0:00:28]} 7. Nc3 {[%emt 0:00:08]} Ne4 {[%emt 0:01:32]} 8. Qc2 {[%emt 0:00:31]} Nxc3 {[%emt 0:00:10]} 9. bxc3 {[%emt 0:01:23]} d6 {[%emt 0:00:26]} 10. Rd1 {[%emt 0:02:34]} Nd7 {[%emt 0:04:21]} 11. Be3 {[%emt 0:05:00]} Qe8 {[%emt 0:17:07]} 12. h4 {[%emt 0:23:27]} Nf6 {[%emt 0:04:10]} 13. d5 {[%emt 0:10:32]} e5 {[%emt 0:04:14]} 14. Bg5 {[%emt 0:02:41]} Nd7 {[%emt 0:06:29]} 15. e4 {[%emt 0:02:43]} Ba6 {[%emt 0:02:07]} 16. Bf1 {[%emt 0:06:16]} Nc5 {[%emt 0:02:12]} 17. Re1 {[%emt 0:00:54]} Qa4 {[%emt 0:11:36]} 18. Rac1 {[%emt 0:06:43]} Qxc2 {[%emt 0:02:35]} 19. Rxc2 {[%emt 0:00:02]} f5 {[%emt 0:00:47]} 20. exf5 {[%emt 0:04:51]} gxf5 {[%emt 0:01:09]} 21. Be3 {[%emt 0:00:39]} Rae8 {[%emt 0:10:56]} 22. Bxc5 {[%emt 0:10:22]} bxc5 {[%emt 0:00:21]} 23. Ng5 {[%emt 0:00:49]} Bc8 {[%emt 0:00:26]} 24. Bg2 {[%emt 0:01:56]} h6 {[%emt 0:03:05]} 25. Ne6 {[%emt 0:00:24]} Bxe6 {[%emt 0:00:05]} 26. dxe6 {[%emt 0:00:04]} e4 {[%emt 0:00:05]} 27. f3 {[%emt 0:00:45]} Rxe6 {[%emt 0:00:19]} 28. fxe4 {[%emt 0:00:38]} Rfe8 {[%emt 0:00:32]} 29. Bh3 {[%emt 0:10:27]} Rxe4 {[%emt 0:00:41]} 30. Rxe4 {[%emt 0:00:05]} fxe4 {[%emt 0:00:26]} 31. Bf5 {[%emt 0:00:32]} e3 {[%emt 0:03:00]} 32. Kf1 {[%emt 0:02:29]} Be5 {[%emt 0:05:27]} 33. g4 {[%emt 0:01:10]} Bg3 {[%emt 0:00:26]} 34. Ke2 {[%emt 0:03:35]} Bxh4 {[%emt 0:00:31]} 35. Rb2 {[%emt 0:00:12]} Bg5 {[%emt 0:04:18]} 36. Rb7 {[%emt 0:00:26]} Kg7 {[%emt 0:04:45]} 37. Rxc7+ {[%emt 0:02:02]} Kf6 {[%emt 0:00:09]} 38. Rd7 {[%emt 0:00:52]} Bf4 {[%emt 0:02:15]} 39. Rxa7 {[%emt 0:00:36]} Rb8 {[%emt 0:00:18]} 40. Kf3 {[%emt 0:00:35]} Rb2 {[%emt 0:05:19]} 41. Bd3 {[%emt 0:03:06]} Rf2+ {[%emt 0:00:13]} 42. Ke4 {[%emt 0:00:02]} Bg5 {[%emt 0:00:18]} 43. Rb7 {[%emt 0:00:21]} Rxa2 {[%emt 0:02:34]} 44. Rb1 {[%emt 0:02:37]} Ke6 {[%emt 0:13:02]} 45. Rf1 {[%emt 0:00:54]} Rd2 {[%emt 0:01:49]} 46. Rg1 {[%emt 0:03:31]} Rf2 {[%emt 0:01:00]} 47. Rf1 {[%emt 0:00:37]} e2 {[%emt 0:02:52]} 48. Re1 {[%emt 0:00:26]} Rf4+ {[%emt 0:00:09]} 49. Ke3 {[%emt 0:00:15]} Rxc4+ {[%emt 0:00:17]} 50. Kxe2 {[%emt 0:03:12]} Rxc3 {[%emt 0:00:11]} 51. Bf5+ {[%emt 0:03:59]} Kf6 {[%emt 0:02:22]} 52. Bd3 {[%emt 0:02:45]} d5 {[%emt 0:00:42]} 53. Rf1+ {[%emt 0:00:29]} Ke5 {[%emt 0:00:25]} 54. Rf7 {[%emt 0:02:18]} c4 {[%emt 0:00:24]} 55. Bf5 {[%emt 0:00:13]} Re3+ {[%emt 0:00:56]} 56. Kf2 {[%emt 0:00:04]} Kd4 {[%emt 0:00:15]} 57. Rd7 {[%emt 0:00:43]} Re5 {[%emt 0:00:44]} 58. Rc7 {[%emt 0:00:20]} Kc3 {[%emt 0:02:07]} 0-1

[Event "Panevezys Elite Open 2019"]
[Site "Panevezys"]
[Date "2019.06.26"]
[Round "5.3"]
[White "Harutjunyan, Gevorg"]
[Black "Rudzinska, Michalina"]
[Result "*"]
[ECO "B43"]
[WhiteElo "2446"]
[BlackElo "2143"]
[Annotator "NA RC"]
[PlyCount "45"]
[EventDate "2019.06.24"]
[EventType "swiss"]
[EventCountry "LTU"]
[SourceTitle "playchess.com"]
[Source "ChessBase"]
[SourceQuality "1"]
[TimeControl "40/5400+30:1800+30"]

1. e4 {[%emt 0:00:00]} c5 {[%emt 0:00:00]} 2. Nf3 {[%emt 0:00:00]} e6 {[%emt 0:00:00]} 3. d4 {[%emt 0:00:00]} cxd4 {[%emt 0:00:00]} 4. Nxd4 {[%emt 0:00:00]} a6 {[%emt 0:00:00]} 5. Nc3 {[%emt 0:00:01]} b5 {[%emt 0:00:02]} 6. Bd3 {[%emt 0:00:15]} Bb7 {[%emt 0:00:42]} 7. O-O {[%emt 0:00:30]} Qc7 {[%emt 0:00:09]} 8. Re1 {[%emt 0:01:36]} d6 {[%emt 0:00:20]} 9. Bg5 {[%emt 0:03:19]} Nc6 {[%emt 0:16:49]} 10. Nxc6 {[%emt 0:10:33]} Bxc6 {[%emt 0:00:49]} 11. a4 {[%emt 0:00:20]} b4 {[%emt 0:00:35]} 12. Nd5 {[%emt 0:00:16]} Qb7 {[%emt 0:01:19]} 13. a5 {[%emt 0:01:32]} h6 {[%emt 0:13:14]} 14. Bd2 {[%emt 0:04:49]} Be7 {[%emt 0:08:00]} 15. Nxb4 {[%emt 0:02:25]} Nf6 {[%emt 0:01:37]} 16. Qe2 {[%emt 0:01:56]} Bxe4 {[%emt 0:05:31]} 17. Bxe4 {[%emt 0:01:25]} d5 {[%emt 0:00:07]} 18. Nxd5 {[%emt 0:04:38]} exd5 {[%emt 0:00:49]} 19. Bf3 {[%emt 0:00:57]} Rd8 {[%emt 0:02:33]} 20. Ra3 {[%emt 0:02:32]} Ne4 {[%emt 0:01:07]} 21. Rb3 {[%emt 0:01:47]} Qd7 {[%emt 0:01:58]} 22. Bxe4 {[%emt 0:02:23]} dxe4 {[%emt 0:00:05]} 23. Qxe4 {[%emt 0:00:19]} *

[Event "Panevezys Elite Open 2019"]
[Site "Panevezys"]
[Date "2019.06.26"]
[Round "5.11"]
[White "Sliwicka, Alicja"]
[Black "Harshita Guddanti"]
[Result "*"]
[ECO "C91"]
[WhiteElo "2261"]
[BlackElo "2072"]
[Annotator "NA RC"]
[PlyCount "165"]
[EventDate "2019.06.24"]
[EventType "swiss"]
[EventCountry "LTU"]
[SourceTitle "playchess.com"]
[Source "ChessBase"]
[SourceQuality "1"]
[TimeControl "40/5400+30:1800+30"]

1. e4 {[%emt 0:00:59]} e5 {[%emt 0:00:00]} 2. Nf3 {[%emt 0:00:31]} Nc6 {[%emt 0:00:00]} 3. Bb5 {[%emt 0:00:05]} a6 {[%emt 0:00:05]} 4. Ba4 {[%emt 0:00:05]} Nf6 {[%emt 0:00:12]} 5. O-O {[%emt 0:00:08]} Be7 {[%emt 0:00:23]} 6. Re1 {[%emt 0:00:06]} b5 {[%emt 0:00:07]} 7. Bb3 {[%emt 0:00:04]} d6 {[%emt 0:00:27]} 8. c3 {[%emt 0:00:06]} O-O {[%emt 0:00:08]} 9. d4 {[%emt 0:00:04]} Bg4 {[%emt 0:01:47]} 10. d5 {[%emt 0:00:10]} Na5 {[%emt 0:00:23]} 11. Bc2 {[%emt 0:00:07]} c6 {[%emt 0:01:33]} 12. h3 {[%emt 0:00:09]} Bc8 13. dxc6 {[%emt 0:00:09]} Qc7 {[%emt 0:01:13]} 14. Nbd2 {[%emt 0:00:10]} Qxc6 {[%emt 0:03:10]} 15. Nf1 {[%emt 0:00:11]} Nc4 {[%emt 0:20:24]} 16. Ng3 {[%emt 0:00:12]} Rd8 {[%emt 0:01:26]} 17. Qe2 {[%emt 0:05:41]} g6 {[%emt 0:05:56]} 18. a4 {[%emt 0:01:11]} Bb7 {[%emt 0:03:12]} 19. b3 {[%emt 0:02:45]} Nb6 {[%emt 0:00:40]} 20. axb5 {[%emt 0:09:21]} Qxc3 {[%emt 0:12:12]} 21. Be3 {[%emt 0:05:42]} axb5 {[%emt 0:00:18]} 22. Rxa8 {[%emt 0:04:44]} Nxa8 {[%emt 0:01:09]} 23. Qxb5 {[%emt 0:02:30]} Bc6 {[%emt 0:02:35]} 24. Qd3 {[%emt 0:10:47]} Qb4 {[%emt 0:09:05]} 25. Ra1 {[%emt 0:05:10]} d5 {[%emt 0:14:26]} 26. Nxe5 {[%emt 0:04:41]} dxe4 {[%emt 0:01:38]} 27. Nxc6 {[%emt 0:10:50]} exd3 {[%emt 0:00:51]} 28. Nxb4 {[%emt 0:00:08]} Bxb4 {[%emt 0:04:15]} 29. Rd1 {[%emt 0:01:35]} d2 {[%emt 0:06:19]} 30. Nf1 {[%emt 0:00:22]} Nd5 {[%emt 0:01:14]} 31. Bxd2 {[%emt 0:02:11]} Rc8 {[%emt 0:01:06]} 32. Be4 {[%emt 0:02:27]} Nc3 {[%emt 0:02:09]} 33. Bxc3 {[%emt 0:01:01]} Bxc3 {[%emt 0:00:06]} 34. Rd7 {[%emt 0:05:40]} Nb6 {[%emt 0:01:30]} 35. Rd6 {[%emt 0:00:11]} Rb8 {[%emt 0:00:34]} 36. Ne3 {[%emt 0:01:45]} Be5 {[%emt 0:01:02]} 37. Rd3 {[%emt 0:00:57]} Rc8 {[%emt 0:01:44]} 38. g3 {[%emt 0:00:45]} f5 {[%emt 0:01:01]} 39. Bd5+ {[%emt 0:03:39]} Kf8 {[%emt 0:00:12]} 40. Nc4 {[%emt 0:05:40]} Nxc4 {[%emt 0:00:54]} 41. Bxc4 {[%emt 0:30:07]} Ke7 {[%emt 0:32:51]} 42. Rd5 {[%emt 0:03:54]} Bd6 {[%emt 0:00:56]} 43. Ra5 {[%emt 0:02:24]} Bc5 {[%emt 0:01:30]} 44. h4 {[%emt 0:00:20]} Kd6 {[%emt 0:00:00]} 45. Kg2 {[%emt 0:00:00]} Kc6 {[%emt 0:00:00]} 46. Ra6+ {[%emt 0:00:00]} Bb6 {[%emt 0:00:00]} 47. Ra2 {[%emt 0:00:00]} Rd8 {[%emt 0:00:00]} 48. Re2 {[%emt 0:00:00]} Bc5 {[%emt 0:00:00]} 49. Kf3 {[%emt 0:00:00]} Bb4 {[%emt 0:00:00]} 50. Re6+ {[%emt 0:00:00]} Rd6 {[%emt 0:00:00]} 51. Rxd6+ {[%emt 0:00:00]} Kxd6 {[%emt 0:00:00]} 52. Bg8 {[%emt 0:00:00]} h6 {[%emt 0:00:00]} 53. Bh7 {[%emt 0:00:00]} g5 {[%emt 0:00:00]} 54. hxg5 {[%emt 0:00:00]} hxg5 {[%emt 0:00:00]} 55. Bxf5 {[%emt 0:00:00]} Ke5 {[%emt 0:00:00]} 56. Kg4 {[%emt 0:00:00]} Kf6 {[%emt 0:00:00]} 57. Bc8 {[%emt 0:00:00]} Bc5 {[%emt 0:00:00]} 58. f4 {[%emt 0:00:00]} gxf4 {[%emt 0:00:00]} 59. Kxf4 {[%emt 0:00:00]} Bd6+ {[%emt 0:00:00]} 60. Kg4 {[%emt 0:00:00]} Be7 {[%emt 0:00:59]} 61. Kh5 {[%emt 0:00:00]} Ke5 {[%emt 0:01:54]} 62. g4 {[%emt 0:00:00]} Kf4 {[%emt 0:00:28]} 63. Kg6 {[%emt 0:00:00]} Bb4 {[%emt 0:00:56]} 64. Kf6 {[%emt 0:00:00]} Bd2 {[%emt 0:01:57]} 65. Bf5 {[%emt 0:00:17]} Ba5 {[%emt 0:01:27]} 66. Ke6 {[%emt 0:00:32]} Bc3 {[%emt 0:00:27]} 67. Kd5 {[%emt 0:00:33]} Bd2 {[%emt 0:00:38]} 68. Kc5 {[%emt 0:01:02]} Be3+ {[%emt 0:00:22]} 69. Kc4 {[%emt 0:00:59]} Ke5 {[%emt 0:00:40]} 70. b4 {[%emt 0:00:08]} Kd6 {[%emt 0:01:30]} 71. b5 {[%emt 0:00:28]} Bg5 {[%emt 0:02:08]} 72. Kd4 {[%emt 0:01:10]} Bd8 {[%emt 0:00:38]} 73. Ke4 {[%emt 0:00:32]} Kc5 {[%emt 0:00:28]} 74. Bd7 {[%emt 0:00:04]} Kd6 {[%emt 0:00:03]} 75. Bc6 {[%emt 0:00:27]} Ke6 {[%emt 0:00:09]} 76. Bd5+ {[%emt 0:00:32]} Kf6 {[%emt 0:00:27]} 77. Bc4 {[%emt 0:00:09]} Ke7 {[%emt 0:00:57]} 78. g5 {[%emt 0:01:15]} Kf8 {[%emt 0:00:22]} 79. Kf5 {[%emt 0:00:13]} Kg7 {[%emt 0:00:16]} 80. g6 {[%emt 0:00:30]} Bb6 {[%emt 0:00:01]} 81. Bd3 {[%emt 0:00:10]} Bd4 {[%emt 0:00:30]} 82. Ke6 {[%emt 0:00:15]} Kf8 {[%emt 0:00:44]} 83. Kd7 {[%emt 0:00:15]} *

[Event "Panevezys Elite Open 2019"]
[Site "Panevezys"]
[Date "2019.06.27"]
[Round "6.7"]
[White "Semjonovs, Ilja"]
[Black "Sulskis, Sarunas"]
[Result "0-1"]
[ECO "A09"]
[WhiteElo "2383"]
[BlackElo "2528"]
[Annotator "RC"]
[PlyCount "100"]
[EventDate "2019.06.24"]
[EventType "swiss"]
[EventCountry "LTU"]
[SourceTitle "playchess.com"]
[Source "ChessBase"]
[SourceQuality "1"]
[TimeControl "40/5400+30:1800+30"]

1. Nf3 {[%emt 0:03:35]} d5 {[%emt 0:00:00]} 2. c4 {[%emt 0:00:31]} d4 {[%emt 0:00:12]} 3. e3 {[%emt 0:00:07]} Nc6 {[%emt 0:01:16]} 4. b4 {[%emt 0:00:31]} Nxb4 {[%emt 0:06:45]} 5. exd4 {[%emt 0:02:23]} e6 {[%emt 0:00:59]} 6. Bb2 {[%emt 0:07:17]} Nf6 {[%emt 0:00:52]} 7. a3 {[%emt 0:03:38]} Nc6 {[%emt 0:00:57]} 8. d3 {[%emt 0:01:31]} Be7 {[%emt 0:02:40]} 9. g3 {[%emt 0:06:51]} O-O {[%emt 0:06:21]} 10. Bg2 {[%emt 0:01:51]} Ne8 {[%emt 0:05:25]} 11. Nbd2 {[%emt 0:07:13]} Nd6 {[%emt 0:02:03]} 12. Ne5 {[%emt 0:06:30]} Nxe5 {[%emt 0:04:09]} 13. dxe5 {[%emt 0:00:10]} Nf5 {[%emt 0:00:05]} 14. Be4 {[%emt 0:04:18]} Rb8 {[%emt 0:01:10]} 15. a4 {[%emt 0:09:16]} b6 {[%emt 0:03:48]} 16. O-O {[%emt 0:01:57]} Bb7 {[%emt 0:07:00]} 17. Qf3 {[%emt 0:00:42]} Bxe4 {[%emt 0:02:33]} 18. Qxe4 {[%emt 0:00:34]} c5 {[%emt 0:05:54]} 19. f4 {[%emt 0:05:11]} h5 {[%emt 0:07:17]} 20. Nf3 {[%emt 0:01:06]} a6 {[%emt 0:01:12]} 21. Bc3 {[%emt 0:05:43]} Qd7 {[%emt 0:02:42]} 22. Kf2 {[%emt 0:01:27]} b5 {[%emt 0:02:18]} 23. axb5 {[%emt 0:00:58]} axb5 {[%emt 0:00:05]} 24. Rfb1 {[%emt 0:04:51]} Rfd8 {[%emt 0:05:43]} 25. Rxb5 {[%emt 0:02:43]} Rxb5 {[%emt 0:01:35]} 26. cxb5 {[%emt 0:00:13]} Qxb5 {[%emt 0:00:08]} 27. Ra8 {[%emt 0:00:17]} Rxa8 {[%emt 0:04:08]} 28. Qxa8+ {[%emt 0:00:08]} Kh7 {[%emt 0:00:07]} 29. Qe4 {[%emt 0:00:16]} Qb1 {[%emt 0:01:30]} 30. Bd2 {[%emt 0:02:41]} g6 {[%emt 0:01:38]} 31. Be1 {[%emt 0:11:44]} Bd8 {[%emt 0:09:33]} 32. Qc4 {[%emt 0:02:58]} Qd1 {[%emt 0:04:23]} 33. Bd2 {[%emt 0:03:19]} Nh6 {[%emt 0:02:30]} 34. h3 {[%emt 0:01:43]} Qh1 {[%emt 0:02:23]} 35. Qxc5 {[%emt 0:01:25]} Qxh3 {[%emt 0:00:29]} 36. Ke2 {[%emt 0:01:27]} Qxg3 {[%emt 0:01:04]} 37. Qg1 {[%emt 0:00:43]} Qh3 {[%emt 0:01:25]} 38. Be1 {[%emt 0:00:40]} Nf5 {[%emt 0:01:51]} 39. Ba5 {[%emt 0:00:31]} Bh4 {[%emt 0:02:34]} 40. Be1 {[%emt 0:00:06]} Kg7 {[%emt 0:01:21]} 41. Nxh4 {[%emt 0:30:49]} Nxh4 {[%emt 0:30:31]} 42. Bxh4 {[%emt 0:00:00]} Qxh4 {[%emt 0:00:00]} 43. Kf3 {[%emt 0:00:00]} Qh3+ {[%emt 0:00:00]} 44. Ke4 {[%emt 0:00:00]} Qg4 {[%emt 0:00:00]} 45. Qxg4 {[%emt 0:00:00]} hxg4 {[%emt 0:00:00]} 46. Ke3 {[%emt 0:00:00]} Kh6 {[%emt 0:00:00]} 47. Kf2 {[%emt 0:00:00]} Kh5 {[%emt 0:00:00]} 48. Kg3 {[%emt 0:00:00]} g5 {[%emt 0:00:00]} 49. f5 {[%emt 0:00:00]} exf5 {[%emt 0:00:00]} 50. d4 {[%emt 0:00:00]} f4+ {[%emt 0:00:00]} 0-1